bitfinex-derivatives/quotes_BTCF0:USTF0_20251108
["timestamp","ask_amount","ask_price","bid_price","bid_amount"]
[1762628208858,0.05917,102210.0,102200.0,1.05404327]
[1762628209063,0.41997,102210.0,102200.0,1.05404327]
[1762628209965,0.05917,102210.0,102200.0,1.05404327]
[1762628210165,0.41997,102210.0,102200.0,1.05404327]
[1762628211065,0.05917,102210.0,102200.0,1.05404327]
[1762628212965,0.05917,102210.0,102200.0,1.3797866]
[1762628214762,0.05917,102210.0,102200.0,1.05408578]
[1762628215464,0.05917,102210.0,102200.0,1.0189866]
[1762628224377,0.0594,102210.0,102200.0,1.0189866]
[1762628235787,0.0594,102210.0,102200.0,1.0179866]
[1762628236077,0.0594,102210.0,102200.0,1.0199866]
[1762628236278,0.0594,102210.0,102200.0,0.7838897]
[1762628236484,0.0594,102210.0,102200.0,1.0209866]
[1762628236882,0.02326,102210.0,102200.0,1.0209866]
[1762628237482,0.02326,102210.0,102200.0,1.0189866]
[1762628237890,0.38406,102210.0,102200.0,1.0189866]
[1762628238182,0.41971,102210.0,102200.0,1.0189866]
[1762628238889,0.41971,102210.0,102200.0,1.0179866]
[1762628239083,0.41971,102210.0,102200.0,1.0199866]
[1762628239591,0.41971,102210.0,102200.0,1.0179866]
[1762628239890,0.41971,102210.0,102200.0,1.0189866]
[1762628240193,0.41971,102210.0,102200.0,1.0540939]
[1762628240891,0.05891,102210.0,102200.0,1.0540939]
[1762628241088,0.41971,102210.0,102200.0,1.0540939]
[1762628242385,0.41971,102210.0,102200.0,0.9365442]
[1762628246288,0.38406,102210.0,102200.0,0.9365442]
[1762628246489,0.41669,102210.0,102200.0,0.9365442]
[1762628248890,0.05589,102210.0,102200.0,0.9365442]
[1762628249094,0.41669,102210.0,102200.0,0.9365442]
[1762628251300,0.43577989,102220.0,102210.0,0.03]
[1762628251499,0.45706989,102220.0,102210.0,0.15419719]
[1762628252499,0.45806989,102220.0,102210.0,0.15419719]
[1762628252702,0.45906989,102220.0,102210.0,0.15419719]
[1762628253200,0.45906989,102220.0,102210.0,0.27174439]
[1762628253705,0.45906989,102220.0,102210.0,0.15419719]
[1762628254403,0.42385748,102220.0,102210.0,0.18930449]
[1762628254603,0.42385748,102220.0,102210.0,0.30685169]
[1762628254904,0.42385748,102220.0,102210.0,0.18930449]
[1762628255407,0.45906989,102220.0,102210.0,0.18930449]
[1762628256007,0.45906989,102220.0,102210.0,0.30685169]
[1762628256707,0.42385748,102220.0,102210.0,0.30685169]
[1762628258006,0.42385748,102220.0,102210.0,0.18930449]
[1762628258206,0.42385748,102220.0,102210.0,0.38609256]
[1762628261814,0.42285748,102220.0,102210.0,0.38609256]
[1762628262013,0.42185748,102220.0,102210.0,0.38709256]
[1762628262214,0.42185748,102220.0,102210.0,0.38809256]
[1762628263816,0.06105748,102220.0,102210.0,0.38809256]
[1762628264014,0.42185748,102220.0,102210.0,0.38809256]
[1762628267920,0.42185748,102220.0,102210.0,0.27054536]
[1762628268218,0.42185748,102220.0,102210.0,0.38809256]
[1762628273315,0.42185748,102220.0,102210.0,0.3880798]
[1762628274222,0.42185748,102220.0,102210.0,0.2705326]
[1762628274623,0.42185748,102220.0,102210.0,0.3880798]
[1762628275824,0.06105748,102220.0,102210.0,0.3880798]
[1762628276127,0.42185748,102220.0,102210.0,0.3880798]
[1762628277927,0.36614748,102220.0,102210.0,0.3880798]
[1762628278236,0.03697,102220.0,102210.0,0.82757886]
[1762628278624,0.05977,102230.0,102210.0,0.92544846]
[1762628278925,0.05977,102230.0,102210.0,0.80790126]
[1762628279222,0.05966,102240.0,102230.0,0.0978503]
[1762628279422,0.05966,102240.0,102220.0,0.67458867]
[1762628279617,0.05977,102230.0,102220.0,0.31375206]
[1762628279817,0.05977,102230.0,102220.0,0.86183206]
[1762628280221,0.05977,102230.0,102220.0,0.86206524]
[1762628281028,0.05977,102230.0,102220.0,0.81617707]
[1762628282120,0.06077,102230.0,102220.0,0.81617707]
[1762628282527,0.06177,102230.0,102220.0,0.81617707]
[1762628284229,0.06177,102230.0,102220.0,0.96447707]
[1762628285632,0.06177,102230.0,102220.0,0.91193412]
[1762628295128,0.06177,102230.0,102220.0,0.93814758]
[1762628295935,0.06177,102230.0,102220.0,0.78984758]
[1762628297839,0.06177,102230.0,102220.0,0.76363412]
[1762628298040,0.06177,102230.0,102220.0,1.12443412]
[1762628298238,0.06177,102230.0,102220.0,1.17697707]
[1762628301935,0.06177,102230.0,102220.0,1.32527707]
[1762628302440,0.06177,102230.0,102220.0,1.44268799]
[1762628304537,0.01588,102230.0,102220.0,1.44268799]
[1762628304837,0.002,102230.0,102220.0,1.44268799]
[1762628306931,0.02509,102230.0,102220.0,1.44268799]
[1762628307440,0.06447,102250.0,102230.0,0.77833962]
[1762628307629,0.42527,102250.0,102240.0,0.2819177]
[1762628308636,0.42527,102250.0,102240.0,0.33446407]
[1762628308846,0.42727,102250.0,102240.0,0.36949007]
[1762628309539,0.43027,102250.0,102240.0,0.36949007]
[1762628310544,0.42827,102250.0,102240.0,0.36949007]
[1762628310743,0.42827,102250.0,102240.0,0.51879007]
[1762628310744,0.43127,102250.0,102240.0,0.51879007]
[1762628312345,0.43127,102250.0,102240.0,0.4662437]
[1762628314850,0.54874906,102250.0,102240.0,0.34876464]
[1762628315047,0.43127,102250.0,102240.0,0.89668464]
[1762628315244,0.43127,102250.0,102240.0,0.92293401]
[1762628315545,0.54874906,102250.0,102240.0,0.80545495]
[1762628315755,0.54874906,102250.0,102240.0,0.92293401]
[1762628316149,0.43127,102250.0,102240.0,0.92293401]
[1762628316450,0.43127,102250.0,102240.0,0.77463401]
[1762628317554,0.54874906,102250.0,102240.0,0.77463401]
[1762628319950,0.43127,102250.0,102240.0,0.77463401]
[1762628321957,0.43127,102250.0,102240.0,0.65715495]
[1762628322257,0.43127,102250.0,102240.0,0.77463401]
[1762628322645,0.54874906,102250.0,102240.0,0.77463401]
[1762628322950,0.43127,102250.0,102240.0,0.77463401]
[1762628323156,0.43127,102250.0,102240.0,0.89211307]
[1762628326060,0.43127,102250.0,102240.0,0.65715495]
[1762628326361,0.43127,102250.0,102240.0,0.89211307]
[1762628327557,0.43127,102250.0,102240.0,0.91049307]
[1762628327856,0.43127,102250.0,102240.0,0.67553495]
[1762628328057,0.43127,102250.0,102240.0,0.91049307]
[1762628329864,0.43127,102250.0,102240.0,0.79301401]
[1762628330549,0.43127,102250.0,102240.0,0.76676464]
[1762628330956,0.64658026,102250.0,102240.0,0.036026]
[1762628331158,0.43127,102250.0,102240.0,0.001]
[1762628331357,0.32099267,102250.0,102240.0,0.001]
[1762628331556,0.94476147,102250.0,102240.0,0.001]
[1762628331957,1.04259267,102250.0,102240.0,0.001]
[1762628332157,0.94476147,102250.0,102240.0,0.001]
[1762628332863,0.94476147,102250.0,102240.0,0.0988407]
[1762628333254,0.82728241,102250.0,102240.0,0.0988407]
[1762628333459,0.94476147,102250.0,102240.0,0.0988407]
[1762628335360,1.04259267,102250.0,102240.0,0.0988407]
[1762628335660,1.04259267,102250.0,102240.0,0.1080307]
[1762628336467,0.94476147,102250.0,102240.0,0.1080307]
[1762628336858,0.94476147,102250.0,102240.0,0.0988407]
[1762628338460,1.04259267,102250.0,102240.0,0.0988407]
[1762628339065,0.92511361,102250.0,102240.0,0.0988407]
[1762628339268,1.04259267,102250.0,102240.0,0.0988407]
[1762628340364,0.94476147,102250.0,102240.0,0.0988407]
[1762628340762,1.04259267,102250.0,102240.0,0.0988407]
[1762628345462,1.03959267,102250.0,102240.0,0.0988407]
[1762628345666,1.04059267,102250.0,102240.0,0.0988407]
[1762628346068,1.03759267,102250.0,102240.0,0.0978407]
[1762628346269,1.03959267,102250.0,102240.0,0.0978407]
[1762628348574,1.03959267,102250.0,102240.0,0.1074807]
[1762628350177,1.03959267,102250.0,102240.0,0.1026607]
[1762628350968,0.1858703,102230.0,102220.0,0.60932696]
[1762628351174,0.92709906,102230.0,102220.0,0.67216086]
[1762628351376,1.02494936,102230.0,102220.0,0.67216086]
[1762628351871,1.02494936,102230.0,102220.0,0.57430096]
[1762628352079,1.02494936,102230.0,102220.0,0.54802702]
[1762628352279,1.02494936,102230.0,102220.0,0.64688692]
[1762628352483,0.9074703,102230.0,102220.0,0.64688692]
[1762628352674,1.02494936,102230.0,102220.0,0.64688692]
[1762628352875,1.02494936,102230.0,102220.0,0.64788692]
[1762628353480,1.02494936,102230.0,102220.0,0.64688692]
[1762628353682,1.02694936,102230.0,102220.0,0.64688692]
[1762628353873,1.02694936,102230.0,102220.0,0.64588692]
[1762628354279,1.02494936,102230.0,102220.0,0.64588692]
[1762628354477,1.02694936,102230.0,102220.0,0.64588692]
[1762628355477,1.02694936,102230.0,102220.0,0.54802702]
[1762628356380,1.02594936,102230.0,102220.0,0.54802702]
[1762628356684,1.02594936,102230.0,102220.0,0.49455702]
[1762628356685,1.14542842,102230.0,102220.0,0.49455702]
[1762628356877,1.02794936,102230.0,102220.0,0.49455702]
[1762628357376,1.02694936,102230.0,102220.0,0.49455702]
[1762628357979,1.02794936,102230.0,102220.0,0.49455702]
[1762628359278,1.12580926,102230.0,102220.0,0.0978599]
[1762628359481,0.08802,102220.0,102210.0,0.20352343]
[1762628359685,0.78163802,102220.0,102210.0,0.17724949]
[1762628360182,0.56629906,102220.0,102210.0,0.21007949]
[1762628360380,0.56629906,102220.0,102210.0,0.24251949]
[1762628360990,0.44882,102220.0,102210.0,0.35999855]
[1762628361286,0.56729906,102220.0,102210.0,0.35999855]
[1762628361981,0.66515896,102220.0,102210.0,0.35999855]
[1762628362486,0.56729906,102220.0,102210.0,0.35999855]
[1762628363085,0.66515886,102220.0,102210.0,0.35999855]
[1762628363485,0.66415886,102220.0,102210.0,0.35999855]
[1762628363785,0.66515886,102220.0,102210.0,0.35999855]
[1762628364286,0.78263792,102220.0,102210.0,0.07938789]
[1762628364477,0.66525482,102220.0,102210.0,0.17725729]
[1762628364675,0.66525482,102220.0,102210.0,0.07938789]
[1762628364878,0.66525482,102220.0,102210.0,0.00014702]
[1762628365178,0.81154177,102220.0,102210.0,0.00014702]
[1762628368480,0.1820095,102210.0,102200.0,0.0978784]
[1762628368680,0.182019,102200.0,102190.0,0.73357634]
[1762628368983,0.542819,102200.0,102190.0,0.7073024]
[1762628369187,0.66039402,102200.0,102190.0,0.6762224]
[1762628369775,0.65939402,102200.0,102190.0,0.6762224]
[1762628370581,0.66039402,102200.0,102190.0,0.6762224]
[1762628370983,0.44594,102200.0,102190.0,0.7073024]
[1762628371189,0.44594,102200.0,102190.0,0.7093024]
[1762628371581,0.543819,102200.0,102190.0,0.7073024]
[1762628372491,0.66139402,102200.0,102190.0,0.7073024]
[1762628374988,0.66139402,102200.0,102190.0,0.60942]
[1762628375391,0.66139402,102200.0,102190.0,0.54804]
[1762628375688,0.66139402,102200.0,102190.0,0.1281886]
[1762628376597,0.66139402,102200.0,102190.0,0.1592686]
[1762628376798,0.66139402,102200.0,102190.0,0.1281886]
[1762628376987,0.66139402,102200.0,102190.0,0.06138]
[1762628377188,0.66139402,102200.0,102190.0,0.0303]
[1762628377396,0.1820286,102190.0,102180.0,0.18569286]
[1762628377591,0.66040362,102190.0,102180.0,0.15941892]
[1762628378595,0.66040362,102190.0,102180.0,0.16041892]
[1762628378896,0.66040362,102190.0,102180.0,0.16141892]
[1762628379992,0.66040362,102190.0,102180.0,0.10003892]
[1762628380493,0.66040362,102190.0,102180.0,0.16141892]
[1762628381902,0.66040362,102190.0,102180.0,0.00214702]
[1762628382103,0.66040362,102190.0,102180.0,0.03244702]
[1762628383994,0.66040362,102190.0,102180.0,0.10004522]
[1762628384600,0.66040362,102190.0,102180.0,0.12855522]
[1762628388403,0.66040362,102190.0,102180.0,0.10004522]
[1762628389709,0.1720582,102180.0,102170.0,0.6460207]
[1762628390005,0.65043322,102180.0,102170.0,0.6460207]
[1762628390207,0.65043322,102180.0,102170.0,0.0979007]
[1762628390406,0.65043322,102180.0,102170.0,0.1254907]
[1762628390610,0.65043322,102180.0,102170.0,0.1551107]
[1762628391509,0.65043322,102180.0,102170.0,0.1571107]
[1762628391710,0.65043322,102180.0,102170.0,0.1591107]
[1762628392812,0.65043322,102180.0,102170.0,0.1019007]
[1762628392998,0.65043322,102180.0,102170.0,0.004]
[1762628393198,0.65043322,102180.0,102170.0,0.1019077]
[1762628394805,0.55253502,102180.0,102170.0,0.1019077]
[1762628395006,0.55253502,102180.0,102170.0,0.1591177]
[1762628395907,0.65043322,102180.0,102170.0,0.1591177]
[1762628396414,0.55253502,102180.0,102170.0,0.1591177]
[1762628397714,0.65043322,102180.0,102170.0,0.1591177]
[1762628398211,0.55253502,102180.0,102170.0,0.1591177]
[1762628399919,0.65043322,102180.0,102170.0,0.1591177]
[1762628400512,0.65043322,102180.0,102170.0,0.06121]
[1762628400716,0.65043322,102180.0,102170.0,0.004]
[1762628401419,0.43496,102180.0,102170.0,0.1585877]
[1762628401613,0.43496,102180.0,102170.0,0.1848931]
[1762628401808,0.5328581,102180.0,102170.0,0.0869854]
[1762628402013,0.5328581,102180.0,102170.0,0.1848931]
[1762628402421,0.5328581,102180.0,102170.0,0.0869854]
[1762628402818,0.5328581,102180.0,102170.0,0.1585877]
[1762628403011,0.5328581,102180.0,102170.0,0.06068]
[1762628403320,0.5328581,102180.0,102170.0,0.1585877]
[1762628403519,0.65043312,102180.0,102170.0,0.15685038]
[1762628404315,0.55253502,102180.0,102170.0,0.15685038]
[1762628404521,0.43496,102180.0,102170.0,0.15685038]
[1762628404709,0.43496,102180.0,102170.0,0.18315578]
[1762628404915,0.41838,102180.0,102170.0,0.3151708]
[1762628405223,0.41838,102180.0,102170.0,0.3238914]
[1762628405423,0.41838,102180.0,102170.0,0.37643777]
[1762628409420,0.41838,102180.0,102170.0,0.92471777]
[1762628410121,0.43586,102180.0,102170.0,0.92471777]
[1762628411321,0.43586,102180.0,102170.0,0.80714275]
[1762628411619,0.43586,102180.0,102170.0,0.92471777]
[1762628415922,0.43586,102180.0,102170.0,0.91027777]
[1762628416326,0.43586,102180.0,102170.0,0.8577314]
[1762628416828,0.43586,102180.0,102170.0,0.91027777]
[1762628417029,0.43586,102180.0,102170.0,0.8577314]
[1762628417322,0.43586,102180.0,102170.0,0.88404375]
[1762628417522,0.43586,102180.0,102170.0,0.76646873]
[1762628419122,0.43586,102180.0,102170.0,0.88404375]
[1762628419319,0.41838,102180.0,102170.0,0.91027777]
[1762628420324,0.43586,102180.0,102170.0,0.91027777]
[1762628421324,0.43586,102180.0,102170.0,0.8577314]
[1762628421724,0.43586,102180.0,102170.0,0.91027777]
[1762628424336,0.43586,102180.0,102170.0,0.9103171]
[1762628426234,0.43586,102180.0,102170.0,0.95751958]
[1762628426731,0.43586,102180.0,102170.0,0.92249358]
[1762628429336,0.36094702,102190.0,102180.0,0.06117]
[1762628429638,0.00014702,102190.0,102180.0,0.44684317]
[1762628429825,0.00014702,102190.0,102180.0,0.6389368]
[1762628430334,0.41341702,102190.0,102180.0,0.4468968]
[1762628430538,0.42957702,102190.0,102180.0,0.91416951]
[1762628431025,0.42957702,102190.0,102180.0,1.03178386]
[1762628432937,0.42957702,102190.0,102180.0,1.03278386]
[1762628433237,0.42957702,102190.0,102180.0,1.03478386]
[1762628433738,0.42957702,102190.0,102180.0,0.79955516]
[1762628434040,0.42957702,102190.0,102180.0,1.03478386]
[1762628435128,0.42957702,102190.0,102180.0,0.48654386]
[1762628435328,0.42957702,102190.0,102180.0,1.03474386]
[1762628436033,0.42957702,102190.0,102180.0,0.7534881]
[1762628436237,0.42957702,102190.0,102180.0,0.87110245]
[1762628436640,0.42957702,102190.0,102180.0,0.9887168]
[1762628437143,0.42957702,102190.0,102180.0,1.0237791]
[1762628437339,0.42957702,102190.0,102180.0,0.90416475]
[1762628437534,0.42957702,102190.0,102180.0,1.0217791]
[1762628437835,0.42957702,102190.0,102180.0,1.0207791]
[1762628441843,0.06877702,102190.0,102180.0,0.9857168]
[1762628449740,0.06877702,102190.0,102180.0,1.3465168]
[1762628450443,0.3608,102200.0,102180.0,1.85302599]
[1762628450645,0.3608,102200.0,102190.0,0.35599121]
[1762628450854,0.3608,102200.0,102190.0,0.32094787]
[1762628451046,0.38519,102200.0,102190.0,0.32094787]
[1762628451547,0.04778,102200.0,102190.0,0.32094787]
[1762628451939,0.04778,102200.0,102190.0,0.32194787]
[1762628452644,0.04778,102200.0,102190.0,0.43956222]
[1762628452845,0.02439,102200.0,102190.0,0.43956222]
[1762628453849,0.02439,102200.0,102190.0,0.44156222]
[1762628455541,0.36094702,102210.0,102200.0,0.151639]
[1762628455745,0.36094702,102210.0,102200.0,0.43941743]
[1762628456146,0.38458702,102210.0,102200.0,0.43941743]
[1762628458153,0.40792702,102210.0,102200.0,0.43941743]
[1762628460159,0.40792702,102210.0,102200.0,0.98753743]
[1762628460757,0.42240702,102210.0,102200.0,0.75230873]
[1762628461059,0.42240702,102210.0,102200.0,0.98753743]
[1762628462160,0.42240702,102210.0,102200.0,1.02254375]
[1762628462366,0.42240702,102210.0,102200.0,1.10015613]
[1762628463959,0.54002137,102210.0,102200.0,0.42608178]
[1762628464161,0.54002137,102210.0,102200.0,0.8039977]
[1762628464356,0.54002137,102210.0,102200.0,0.83025797]
[1762628464757,0.54002137,102210.0,102200.0,0.79525165]
[1762628466156,0.54102137,102210.0,102200.0,0.20175165]
[1762628466562,0.63889077,102210.0,102200.0,0.20175165]
[1762628466864,1.53863217,102210.0,102200.0,0.00443238]
[1762628467055,0.0442,102200.0,102190.0,0.0978854]
[1762628467255,0.6402287,102200.0,102190.0,0.0978854]
[1762628467456,0.7381076,102200.0,102190.0,0.0978854]
[1762628469961,0.7391076,102200.0,102190.0,0.0978854]
[1762628470367,0.88620053,102200.0,102190.0,0.0978854]
[1762628470554,1.48620053,102200.0,102190.0,0.0612954]
[1762628470759,0.0978885,102190.0,102180.0,0.09803802]
[1762628470959,0.6939172,102190.0,102180.0,0.13460802]
[1762628471158,0.57630285,102190.0,102180.0,0.13460802]
[1762628471962,0.57630285,102190.0,102180.0,0.15778802]
[1762628473472,0.57630285,102190.0,102180.0,0.09803802]
[1762628474071,0.57630285,102190.0,102180.0,0.13460802]
[1762628474370,0.57630285,102190.0,102180.0,0.11236802]
[1762628474570,0.4586885,102190.0,102180.0,0.13460802]
[1762628474872,0.57630285,102190.0,102180.0,0.13460802]
[1762628475772,0.57630285,102190.0,102180.0,0.01447702]
[1762628475972,0.57630285,102190.0,102180.0,0.11237512]
[1762628476166,0.57630285,102190.0,102180.0,0.01447702]
[1762628476167,0.6939172,102190.0,102180.0,0.01447702]
[1762628476970,0.6939172,102190.0,102180.0,0.00014702]
[1762628477172,0.6939172,102190.0,102180.0,0.09804512]
[1762628478566,0.6939172,102190.0,102180.0,0.00014702]
[1762628478770,0.6939172,102190.0,102180.0,0.09804512]
[1762628480373,0.6939172,102190.0,102180.0,0.15779512]
[1762628480576,0.4586885,102190.0,102180.0,0.15779512]
[1762628480768,0.57630285,102190.0,102180.0,0.15779512]
[1762628484381,0.57632347,102190.0,102180.0,0.15779512]
[1762628492885,0.57632347,102190.0,102180.0,0.05989702]
[1762628493987,0.57632347,102190.0,102180.0,0.15779512]
[1762628494188,0.61153588,102190.0,102180.0,0.15779512]
[1762628494988,0.61153588,102190.0,102180.0,0.05989702]
[1762628495285,0.61153588,102190.0,102180.0,0.11237512]
[1762628495690,0.61153588,102190.0,102180.0,0.01447702]
[1762628495896,0.61153588,102190.0,102180.0,0.03632702]
[1762628496282,0.66427599,102190.0,102180.0,0.03632702]
[1762628496480,0.66427599,102190.0,102180.0,0.13422512]
[1762628496691,0.66427599,102190.0,102180.0,0.11237512]
[1762628496889,0.61153588,102190.0,102180.0,0.00014702]
[1762628497093,0.66427599,102190.0,102180.0,0.00014702]
[1762628497392,0.62906358,102190.0,102180.0,0.00014702]
[1762628497783,0.63868815,102190.0,102180.0,0.00014702]
[1762628498986,0.85048404,102190.0,102180.0,0.00014702]
[1762628500493,0.92109319,102190.0,102180.0,0.00014702]
[1762628500791,0.0978982,102180.0,102170.0,0.1072808]
[1762628500985,0.78201442,102180.0,102170.0,0.1072808]
[1762628501183,0.89383437,102180.0,102170.0,0.1072808]
[1762628501384,0.89383437,102180.0,102170.0,0.00938]
[1762628501585,0.89383437,102180.0,102170.0,0.1072878]
[1762628502084,0.92904742,102180.0,102170.0,0.1072878]
[1762628502779,0.0979077,102170.0,102160.0,0.23137087]
[1762628502985,0.4939175,102170.0,102160.0,0.23137087]
[1762628503180,0.54674527,102170.0,102160.0,0.23137087]
[1762628503489,0.4939175,102170.0,102160.0,0.23137087]
[1762628503994,0.4949175,102170.0,102160.0,0.23137087]
[1762628504482,0.4979175,102170.0,102160.0,0.23237087]
[1762628504681,0.61755247,102170.0,102160.0,0.23237087]
[1762628505694,0.67038024,102170.0,102160.0,0.23237087]
[1762628506193,0.61755247,102170.0,102160.0,0.23237087]
[1762628506796,0.67038024,102170.0,102160.0,0.23237087]
[1762628507294,0.61755247,102170.0,102160.0,0.23237087]
[1762628509396,0.58234267,102170.0,102160.0,0.23237087]
[1762628509784,0.61755247,102170.0,102160.0,0.13418422]
[1762628509991,0.61755247,102170.0,102160.0,0.15646422]
[1762628511185,0.3668,102170.0,102160.0,0.15646422]
[1762628511390,0.3668,102170.0,102160.0,0.27409919]
[1762628512300,0.3668,102170.0,102160.0,0.30031964]
[1762628521206,0.3668,102170.0,102160.0,0.18268467]
[1762628521592,0.3668,102170.0,102160.0,0.73100467]
[1762628523601,0.3668,102170.0,102160.0,0.08476747]
[1762628523602,0.58234257,102170.0,102160.0,0.08476747]
[1762628523799,0.58234257,102170.0,102160.0,0.18268467]
[1762628523800,0.48443497,102170.0,102160.0,0.18268467]
[1762628524402,0.58234267,102170.0,102160.0,0.18268467]
[1762628524599,0.58234267,102170.0,102160.0,0.08476747]
[1762628524802,0.58234267,102170.0,102160.0,0.18268467]
[1762628526296,0.58234267,102170.0,102160.0,0.05854702]
[1762628526492,0.58234267,102170.0,102160.0,0.15646432]
[1762628526997,0.48443497,102170.0,102160.0,0.15646432]
[1762628527198,0.58234267,102170.0,102160.0,0.15646432]
[1762628528603,0.48443497,102170.0,102160.0,0.15646432]
[1762628528806,0.58234257,102170.0,102160.0,0.15646432]
[1762628529709,0.58234257,102170.0,102160.0,0.05854702]
[1762628530901,0.61755237,102170.0,102160.0,0.05854702]
[1762628531806,0.58234257,102170.0,102160.0,0.15646422]
[1762628533210,0.58234257,102170.0,102160.0,0.05854702]
[1762628533508,0.58234257,102170.0,102160.0,0.15646422]
[1762628534702,0.48443497,102170.0,102160.0,0.15646422]
[1762628535311,0.58234257,102170.0,102160.0,0.15646422]
[1762628535712,0.58234257,102170.0,102160.0,0.05854702]
[1762628537614,0.58234257,102170.0,102160.0,0.15646422]
[1762628539814,0.58234257,102170.0,102160.0,0.05854702]
[1762628540010,0.3668,102170.0,102160.0,0.15646422]
[1762628540213,0.3668,102170.0,102160.0,0.30042227]
[1762628540511,0.3668,102170.0,102160.0,0.33542859]
[1762628541308,0.3668,102170.0,102160.0,0.21779362]
[1762628541619,0.3668,102170.0,102160.0,0.33542859]
[1762628542915,0.3668,102170.0,102160.0,0.33543105]
[1762628543121,0.3668,102170.0,102160.0,0.30910551]
[1762628543519,0.3668,102170.0,102160.0,0.19147054]
[1762628543722,0.3668,102170.0,102160.0,0.30910551]
[1762628545910,0.3668,102170.0,102160.0,0.36165524]
[1762628546414,0.3668,102170.0,102160.0,0.47927245]
[1762628549113,0.3668,102170.0,102160.0,1.02759245]
[1762628549417,0.3668,102170.0,102160.0,0.97504272]
[1762628549623,0.3668,102170.0,102160.0,1.02759245]
[1762628549816,0.3668,102170.0,102160.0,0.97504272]
[1762628550421,0.3668,102170.0,102160.0,1.02759245]
[1762628551322,0.3608,102170.0,102160.0,1.02859245]
[1762628551521,0.3618,102170.0,102160.0,1.03059245]
[1762628552825,0.3618,102170.0,102160.0,0.99558613]
[1762628553317,0.3618,102170.0,102160.0,1.0306403]
[1762628554823,0.3618,102170.0,102160.0,0.91301421]
[1762628555815,0.3618,102170.0,102160.0,1.0306403]
[1762628563327,0.3618,102170.0,102160.0,0.99558613]
[1762628568825,0.3618,102170.0,102160.0,0.87796004]
[1762628573534,0.3618,102170.0,102160.0,0.99558613]
[1762628574838,0.001,102170.0,102160.0,0.99558613]
[1762628575039,0.3618,102170.0,102160.0,0.99558613]
[1762628575238,0.3618,102170.0,102160.0,0.87796004]
[1762628579754,0.3618,102170.0,102160.0,0.99558613]
[1762628584449,0.3618,102170.0,102160.0,0.89766893]
[1762628584644,0.3618,102170.0,102160.0,0.99558613]
[1762628586761,0.3618,102170.0,102160.0,0.87796004]
[1762628587462,0.3618,102170.0,102160.0,0.78004284]
[1762628588160,0.3618,102170.0,102160.0,0.87796004]
[1762628592262,0.3618,102170.0,102160.0,0.76033395]
[1762628592466,0.3618,102170.0,102160.0,0.87796004]
[1762628594361,0.57733369,102170.0,102160.0,0.66241675]
[1762628594565,0.57733369,102170.0,102160.0,0.76029395]
[1762628594764,0.47942609,102170.0,102160.0,0.87792004]
[1762628595059,0.3618,102170.0,102160.0,0.87792004]
[1762628595366,0.3618,102170.0,102160.0,0.99554613]
[1762628596266,0.3618,102170.0,102160.0,0.9429964]
[1762628596860,0.3618,102170.0,102160.0,0.98944416]
[1762628601666,0.001,102170.0,102160.0,1.05965516]
[1762628604871,0.3618,102170.0,102160.0,1.05965516]
[1762628605064,0.001,102170.0,102160.0,1.05965516]
[1762628608374,0.001,102170.0,102160.0,0.94202082]
[1762628609873,0.57732554,102170.0,102160.0,0.66242288]
[1762628610472,0.57732554,102170.0,102160.0,0.69751831]
[1762628610670,0.57732554,102170.0,102160.0,0.67120984]
[1762628610874,0.57732554,102170.0,102160.0,0.63611441]
[1762628611476,0.47941784,102170.0,102160.0,0.63611441]
[1762628611669,0.57732554,102170.0,102160.0,0.63611441]
[1762628611874,0.57732554,102170.0,102160.0,0.73403161]
[1762628612377,0.4597077,102170.0,102160.0,0.73403161]
[1762628616384,0.3618,102170.0,102160.0,0.73403161]
[1762628617784,0.3618,102170.0,102160.0,0.86041749]
[1762628624191,0.3618,102170.0,102160.0,0.91305335]
[1762628624393,0.3618,102170.0,102160.0,0.87795792]
[1762628634501,0.001,102170.0,102160.0,0.87795792]
[1762628639006,0.3608,102180.0,102170.0,0.05664]
[1762628639202,0.3608,102180.0,102170.0,0.75759677]
[1762628639811,0.3608,102180.0,102170.0,0.85550447]
[1762628640511,0.3608,102180.0,102170.0,0.85650447]
[1762628641409,0.3608,102180.0,102170.0,0.74088663]
[1762628641612,0.3608,102180.0,102170.0,0.85850447]
[1762628642201,0.3608,102180.0,102170.0,0.74088663]
[1762628642905,0.3608,102180.0,102170.0,0.19260663]
[1762628643512,0.3608,102180.0,102170.0,0.19160663]
[1762628643711,0.3608,102180.0,102170.0,0.18960663]
[1762628645312,0.3608,102180.0,102170.0,0.24224249]
[1762628645514,0.3608,102180.0,102170.0,0.18960663]
[1762628652815,0.47841784,102180.0,102170.0,0.18960663]
[1762628653515,0.57631594,102180.0,102170.0,0.18960663]
[1762628655215,0.57631594,102180.0,102170.0,0.21595648]
[1762628656424,0.57631594,102180.0,102170.0,0.18089755]
[1762628656722,0.47841784,102180.0,102170.0,0.18089755]
[1762628657322,0.57631594,102180.0,102170.0,0.18089755]
[1762628663134,0.57631594,102180.0,102170.0,0.1545477]
[1762628666224,0.61152574,102180.0,102170.0,0.1545477]
[1762628666631,0.57631594,102180.0,102170.0,0.1545477]
[1762628668139,0.21551594,102180.0,102170.0,0.1545477]
[1762628668330,1.05481302,102180.0,102170.0,0.1545477]
[1762628675441,1.05481302,102180.0,102170.0,0.18087062]
[1762628676042,1.05481302,102180.0,102170.0,0.1545477]
[1762628676428,1.05481302,102180.0,102170.0,0.05664]
[1762628676743,0.0979077,102170.0,102160.0,0.18177724]
[1762628676940,0.57636516,102170.0,102160.0,0.18177724]
[1762628677840,0.57636516,102170.0,102160.0,0.18377724]
[1762628678141,0.57636516,102170.0,102160.0,0.15745432]
[1762628679541,0.4587077,102170.0,102160.0,0.15745432]
[1762628679743,0.57636516,102170.0,102160.0,0.15845432]
[1762628680044,0.57636516,102170.0,102160.0,0.18477724]
[1762628687852,0.4587077,102170.0,102160.0,0.18477724]
[1762628688046,0.57636516,102170.0,102160.0,0.18477724]
[1762628691452,0.4587077,102170.0,102160.0,0.15845432]
[1762628691652,0.57636516,102170.0,102160.0,0.15845432]
[1762628692756,0.47845746,102170.0,102160.0,0.3024347]
[1762628693451,0.3608,102170.0,102160.0,0.42009216]
[1762628693657,0.3608,102170.0,102160.0,0.45515109]
[1762628694155,0.3608,102170.0,102160.0,0.42882817]
[1762628694355,0.3608,102170.0,102160.0,0.45516457]
[1762628694856,0.3608,102170.0,102160.0,0.33750711]
[1762628695358,0.3608,102170.0,102160.0,0.45516457]
[1762628696152,0.3608,102170.0,102160.0,0.21984965]
[1762628696359,0.3608,102170.0,102160.0,0.45516457]
[1762628696957,0.3608,102170.0,102160.0,0.42882817]
[1762628697261,0.3258,102170.0,102160.0,0.48146403]
[1762628697562,0.3258,102170.0,102160.0,0.4464051]
[1762628698148,0.39516,102180.0,102170.0,0.1551376]
[1762628698345,0.39516,102180.0,102170.0,0.33421353]
[1762628698960,0.39516,102180.0,102170.0,0.30789133]